bitfinex/quotes_BTCUSD_20230906
["timestamp","ask_amount","ask_price","bid_price","bid_amount"]
[1694012679996,2.255613,25650.0,25643.0,0.1219]
[1694012679997,0.01384914,25645.0,25643.0,0.1219]
[1694012680225,0.35436023,25650.0,25643.0,0.15457661]
[1694012680226,0.01384914,25644.0,25643.0,0.15457661]
[1694012680441,0.01384914,25644.0,25643.0,0.901839]
[1694012680655,0.01384914,25644.0,25643.0,2.461717]
[1694012681079,0.01384914,25644.0,25643.0,4.021595]
[1694012683071,0.01384914,25644.0,25643.0,4.039595]
[1694012683716,0.01384914,25644.0,25643.0,4.061595]
[1694012684974,0.01384914,25644.0,25643.0,4.021595]
[1694012685154,0.01384914,25644.0,25643.0,4.039595]
[1694012685353,0.01384914,25644.0,25643.0,4.064595]
[1694012685753,0.01384914,25644.0,25643.0,4.046595]
[1694012685955,0.01384914,25644.0,25643.0,4.346595]
[1694012686558,0.01384914,25644.0,25643.0,4.371595]
[1694012698232,0.01384914,25645.0,25643.0,4.371595]
[1694012698417,0.01384914,25644.0,25643.0,4.249695]
[1694012698629,0.01384914,25644.0,25643.0,4.371595]
[1694012699049,0.01384914,25644.0,25643.0,4.346595]
[1694012699270,0.01384914,25644.0,25643.0,4.321595]
[1694012699466,0.01384914,25644.0,25643.0,4.361595]
[1694012699947,0.01384914,25644.0,25643.0,4.343595]
[1694012700150,0.01384914,25644.0,25643.0,4.368595]
[1694012700825,0.01384914,25644.0,25643.0,4.346595]
[1694012701043,0.01384914,25644.0,25643.0,4.371595]
[1694012701473,0.01384914,25644.0,25643.0,4.346595]
[1694012701891,0.01384914,25644.0,25643.0,4.371595]
[1694012702123,0.01384914,25645.0,25643.0,4.371595]
[1694012702339,0.01384914,25646.0,25644.0,0.1219]
[1694012702565,0.1879,25650.0,25643.0,1.204219]
[1694012702566,0.01384914,25645.0,25643.0,1.204219]
[1694012702773,0.01384914,25645.0,25644.0,0.901809]
[1694012702986,0.01384914,25645.0,25644.0,3.241536]
[1694012703826,0.01384914,25645.0,25644.0,3.308196]
[1694012704041,0.01384914,25645.0,25644.0,3.04982322]
[1694012705094,0.01384914,25645.0,25644.0,3.07482322]
[1694012706144,0.01384914,25645.0,25644.0,3.09982322]
[1694012710478,0.02974952,25645.0,25644.0,3.09982322]
[1694012712102,0.02974952,25645.0,25644.0,2.19801422]
[1694012713211,0.02974952,25645.0,25644.0,2.97792322]
[1694012713411,0.12280453,25645.0,25644.0,2.97792322]
[1694012714038,0.12280453,25645.0,25644.0,2.19801422]
[1694012714587,0.85785245,25645.0,25644.0,0.05]
[1694012714757,0.71826993,25645.0,25644.0,1.609818]
[1694012714936,1.50250482,25645.0,25644.0,0.829909]
[1694012715144,3.41682747,25645.0,25644.0,0.05]
[1694012715341,3.23069033,25645.0,25644.0,0.05]
[1694012716160,2.99805279,25645.0,25644.0,0.05]
[1694012716384,3.13377499,25645.0,25644.0,0.05]
[1694012716542,3.27721784,25645.0,25644.0,0.05]
[1694012717145,3.43337284,25645.0,25644.0,0.05]
[1694012717363,3.43354182,25645.0,25644.0,0.05]
[1694012717581,2.0150218,25645.0,25644.0,0.05]
[1694012717791,2.0150218,25645.0,25644.0,0.829909]
[1694012717999,2.0150218,25645.0,25644.0,1.609818]
[1694012718204,1.73568777,25645.0,25644.0,1.610818]
[1694012719080,1.73568777,25645.0,25644.0,2.364727]
[1694012719081,1.61378777,25645.0,25644.0,2.364727]
[1694012719284,1.61378777,25645.0,25644.0,2.365727]
[1694012719770,0.71378777,25645.0,25644.0,2.365727]
[1694012720394,0.71378777,25645.0,25644.0,2.340727]
[1694012720822,0.71378777,25645.0,25644.0,2.345727]
[1694012721026,0.71378777,25645.0,25644.0,1.565818]
[1694012721431,2.39544577,25645.0,25644.0,0.006]
[1694012721644,1.61556677,25645.0,25644.0,0.006]
[1694012722252,0.83568777,25645.0,25644.0,0.001]
[1694012722457,0.83568777,25645.0,25644.0,0.006]
[1694012725508,0.83568777,25645.0,25644.0,1.565818]
[1694012727760,0.83568777,25645.0,25644.0,0.785909]
[1694012727968,0.83568777,25645.0,25644.0,0.006]
[1694012728175,1.61556677,25645.0,25644.0,0.006]
[1694012728783,0.83568777,25645.0,25644.0,0.006]
[1694012730129,0.69444979,25645.0,25644.0,0.006]
[1694012730343,1.47432879,25645.0,25644.0,0.006]
[1694012730945,1.59770534,25645.0,25644.0,0.006]
[1694012731902,0.81782634,25645.0,25644.0,0.006]
[1694012732101,0.82462301,25645.0,25644.0,0.006]
[1694012732305,0.82462301,25645.0,25644.0,0.785909]
[1694012733312,0.70272301,25645.0,25644.0,0.785909]
[1694012733773,0.70272301,25645.0,25644.0,0.006]
[1694012733974,1.48260201,25645.0,25644.0,0.006]
[1694012734378,0.70272301,25645.0,25644.0,0.006]
[1694012734834,0.98196296,25645.0,25644.0,0.006]
[1694012735018,0.70272301,25645.0,25644.0,0.006]
[1694012735221,0.70272301,25645.0,25644.0,0.785909]
[1694012735632,0.70272301,25645.0,25644.0,0.006]
[1694012736473,0.70272301,25645.0,25644.0,0.785909]
[1694012736976,0.70272301,25645.0,25644.0,1.565818]
[1694012737939,0.98200403,25645.0,25644.0,1.565818]
[1694012738145,0.42319146,25645.0,25644.0,3.125636]
[1694012738947,0.03654619,25645.0,25644.0,3.125636]
[1694012739146,0.22276299,25645.0,25644.0,3.247536]
[1694012739347,0.16236829,25645.0,25644.0,3.318396]
[1694012739546,0.2693309,25645.0,25644.0,3.323976]
[1694012739771,0.17621743,25645.0,25644.0,3.323016]
[1694012739929,0.17621743,25645.0,25644.0,3.322896]
[1694012740142,0.15352038,25645.0,25644.0,3.322056]
[1694012740346,0.10696267,25645.0,25644.0,3.321576]
[1694012740554,0.10696267,25645.0,25644.0,3.320976]
[1694012740754,0.10276267,25645.0,25644.0,3.57040454]
[1694012740963,0.10276267,25645.0,25644.0,3.63604454]
[1694012741175,0.10276267,25645.0,25644.0,3.57040454]
[1694012742181,0.10276267,25645.0,25644.0,3.63622454]
[1694012742417,0.10276267,25645.0,25644.0,3.57040454]
[1694012742619,0.10276267,25645.0,25644.0,3.247536]
[1694012744572,0.33553718,25645.0,25644.0,3.247536]
[1694012744772,0.35829378,25645.0,25644.0,3.247536]
[1694012745163,0.21862254,25645.0,25644.0,3.247536]
[1694012747384,0.45138531,25645.0,25644.0,3.247536]
[1694012750404,0.26516851,25645.0,25644.0,3.247536]
[1694012752926,0.21865047,25645.0,25644.0,3.247536]
[1694012753347,0.16244304,25645.0,25644.0,3.247536]
[1694012753550,0.14933558,25645.0,25644.0,3.247536]
[1694012753935,0.17208148,25645.0,25644.0,3.247536]
[1694012754472,0.14933558,25645.0,25644.0,3.247536]
[1694012754891,0.17210464,25645.0,25644.0,3.247536]
[1694012757702,0.1255481,25645.0,25644.0,3.247536]
[1694012759082,0.10277904,25645.0,25644.0,3.247536]
[1694012759718,0.265221,25645.0,25644.0,3.247536]
[1694012760326,0.12553456,25645.0,25644.0,3.247536]
[1694012760524,0.265221,25645.0,25644.0,3.247536]
[1694012761163,0.26520137,25645.0,25644.0,3.247536]
[1694012761348,0.1720911,25645.0,25644.0,3.247536]
[1694012765407,0.1720911,25645.0,25644.0,0.006]
[1694012765408,0.7449811,25645.0,25644.0,0.006]
[1694012765611,0.60529466,25645.0,25644.0,0.785909]
[1694012766027,0.60529466,25645.0,25644.0,1.565818]
[1694012766235,0.83805743,25645.0,25644.0,1.565818]
[1694012766454,0.60529466,25645.0,25644.0,2.345727]
[1694012766679,0.83814614,25645.0,25644.0,2.345727]
[1694012766875,0.60531491,25645.0,25644.0,2.345727]
[1694012767122,0.83814614,25645.0,25644.0,2.345727]
[1694012767861,0.83814614,25645.0,25644.0,1.565818]
[1694012768254,0.65188116,25645.0,25644.0,1.565818]
[1694012768455,1.55739847,25645.0,25644.0,0.006]
[1694012768658,2.10444624,25645.0,25644.0,0.006]
[1694012768867,1.32456724,25645.0,25644.0,0.006]
[1694012770534,2.10444624,25645.0,25644.0,0.006]
[1694012770946,1.97880793,25645.0,25644.0,0.006]
[1694012771153,2.25820541,25645.0,25644.0,0.006]
[1694012771356,2.38182884,25645.0,25644.0,0.006]
[1694012773217,3.15998441,25645.0,25644.0,0.006]
[1694012774303,0.13697704,25644.0,25642.0,1.5275435]
[1694012774510,0.38664527,25643.0,25642.0,0.7475735]
[1694012774681,1.28977278,25643.0,25642.0,0.7475735]
[1694012774898,1.32212421,25643.0,25642.0,0.7475735]
[1694012775303,0.54218521,25643.0,25642.0,0.7475735]
[1694012775510,0.54218521,25643.0,25642.0,0.70907701]
[1694012775709,0.54218521,25643.0,25642.0,0.72207701]
[1694012776393,0.54218521,25643.0,25642.0,0.013]
[1694012777386,1.32212421,25643.0,25642.0,0.013]
[1694012777540,0.54218521,25643.0,25642.0,0.013]
[1694012777934,0.03706238,25642.0,25641.0,1.5214665]
[1694012778143,0.65670223,25642.0,25641.0,1.5214665]
[1694012778341,0.65670223,25642.0,25641.0,1.5114665]
[1694012778582,0.66635137,25642.0,25641.0,1.5114665]
[1694012779298,0.66635137,25642.0,25641.0,1.49797001]
[1694012780253,0.62928899,25642.0,25641.0,0.025]
[1694012780383,0.62928899,25642.0,25640.0,0.780102]
[1694012780384,0.00964914,25638.0,25637.0,0.7801]
[1694012780584,0.25750976,25638.0,25637.0,2.340307]
[1694012780788,0.10285165,25638.0,25637.0,2.340307]
[1694012781155,0.10285165,25638.0,25637.0,3.120429]
[1694012781568,0.10285165,25638.0,25637.0,3.145429]
[1694012782163,0.08985165,25638.0,25637.0,3.170429]
[1694012782384,0.08985165,25638.0,25637.0,3.145429]
[1694012782385,0.08785165,25638.0,25637.0,3.145429]
[1694012782792,0.08785165,25638.0,25637.0,3.120429]
[1694012783000,0.25314817,25638.0,25637.0,3.145429]
[1694012785068,0.25314817,25638.0,25637.0,2.365307]
[1694012785488,0.15103871,25638.0,25637.0,1.5852]
[1694012786317,0.002,25638.0,25637.0,1.5852]
[1694012786523,0.002,25638.0,25637.0,2.365322]
[1694012787975,0.002,25638.0,25637.0,1.5852]
[1694012788176,0.38864527,25638.0,25637.0,0.8051]
[1694012788596,0.38864527,25638.0,25637.0,1.585222]
[1694012789194,0.38664527,25638.0,25637.0,1.560222]
[1694012789599,0.41114527,25638.0,25637.0,1.579222]
[1694012790088,0.41114527,25638.0,25637.0,1.604222]
[1694012790512,0.41114527,25638.0,25637.0,1.579222]
[1694012790774,0.41114527,25638.0,25637.0,0.7991]
[1694012790951,0.41114527,25638.0,25637.0,0.8171]
[1694012791370,2.09322927,25638.0,25637.0,0.037]
[1694012791589,2.23303304,25638.0,25637.0,0.037]
[1694012792007,2.09322927,25638.0,25637.0,0.037]
[1694012792214,2.18636293,25638.0,25637.0,0.037]
[1694012792420,1.40627093,25638.0,25637.0,0.037]
[1694012793035,2.18636293,25638.0,25637.0,0.037]
[1694012793852,1.40627093,25638.0,25637.0,0.037]
[1694012794061,0.76382422,25638.0,25637.0,0.037]
[1694012795315,0.67069056,25638.0,25637.0,0.037]
[1694012796224,1.45078256,25638.0,25637.0,0.037]
[1694012796435,2.23087456,25638.0,25637.0,0.037]
[1694012798458,2.09322927,25638.0,25637.0,0.037]
[1694012803287,1.97132927,25638.0,25637.0,0.037]
[1694012803700,2.09910853,25638.0,25637.0,0.037]
[1694012804548,0.53892453,25638.0,25637.0,0.037]
[1694012804756,0.53892453,25638.0,25637.0,0.817122]
[1694012806773,0.53892453,25638.0,25637.0,0.037]
[1694012807545,0.63205819,25638.0,25637.0,0.037]
[1694012811875,0.77186196,25638.0,25637.0,0.037]
[1694012812085,1.4588203,25638.0,25637.0,0.037]
[1694012812703,0.6787283,25638.0,25637.0,0.037]
[1694012813362,2.2389123,25638.0,25637.0,0.037]
[1694012814143,2.42531733,25638.0,25637.0,0.037]
[1694012814376,2.1577343,25638.0,25637.0,0.037]
[1694012814926,3.1177343,25638.0,25637.0,0.037]
[1694012815129,5.03282459,25638.0,25637.0,0.037]
[1694012815336,4.84641956,25638.0,25637.0,0.037]
[1694012815539,4.61341327,25638.0,25637.0,0.037]
[1694012815790,4.61341327,25638.0,25633.0,0.780242]
[1694012815997,0.23309793,25635.0,25633.0,1.560484]
[1694012816171,0.47988444,25634.0,25633.0,1.560484]
[1694012816637,0.50211932,25634.0,25633.0,2.340728]
[1694012816848,0.52332962,25634.0,25633.0,2.340728]
[1694012817987,0.52532962,25634.0,25633.0,2.357728]
[1694012818417,0.52632962,25634.0,25633.0,1.593484]
[1694012819102,0.66618838,25634.0,25633.0,1.593484]
[1694012821023,0.57294921,25634.0,25633.0,1.593484]
[1694012821633,2.13337521,25634.0,25633.0,0.033]
[1694012821852,3.14751708,25634.0,25633.0,0.033]
[1694012822060,3.26751708,25634.0,25633.0,0.033]
[1694012822265,3.81463215,25634.0,25633.0,0.033]
[1694012822667,3.81363215,25634.0,25633.0,0.017]
[1694012823069,0.04,25632.0,25629.0,0.76695036]
[1694012823275,0.04,25632.0,25627.0,0.1548]
[1694012823276,2.18038735,25631.0,25627.0,1.560827]
[1694012823485,1.94844919,25630.0,25627.0,0.780403]
[1694012823687,2.19523681,25630.0,25627.0,0.780397]
[1694012823900,2.19523681,25630.0,25627.0,1.56084]
[1694012823901,0.38664527,25629.0,25627.0,1.56084]
[1694012824043,0.38664527,25629.0,25627.0,0.780412]
[1694012824261,0.38664527,25629.0,25627.0,0.70336891]
[1694012824462,0.38664527,25629.0,25627.0,2.26421291]
[1694012824661,0.38664527,25629.0,25627.0,3.04463891]
[1694012825997,0.38964527,25629.0,25627.0,3.07463891]
[1694012827598,0.38964527,25629.0,25628.0,0.19048]
[1694012827599,0.003,25629.0,25628.0,0.19048]
[1694012827801,0.003,25629.0,25628.0,3.315184]
[1694012828001,0.003,25629.0,25628.0,3.315004]
[1694012828217,0.003,25629.0,25628.0,3.313384]
[1694012828426,0.003,25629.0,25628.0,3.313144]
[1694012828622,0.002,25629.0,25628.0,3.243484]
[1694012828828,0.11262948,25631.0,25628.0,3.243484]
[1694012829031,0.11262948,25631.0,25630.0,0.1219]
[1694012829236,0.11262948,25631.0,25630.0,2.462905]
[1694012829849,0.54,25632.0,25630.0,2.462905]
[1694012830052,0.92664527,25632.0,25630.0,2.462905]
[1694012830283,0.002,25631.0,25630.0,2.462905]
[1694012830489,0.002,25631.0,25630.0,3.24324]
[1694012832268,0.92664527,25632.0,25630.0,3.24324]
[1694012832629,0.93764527,25632.0,25630.0,3.12234]
[1694012833512,0.94964527,25632.0,25630.0,3.12334]
[1694012833993,0.93764527,25632.0,25630.0,3.12234]
[1694012834236,0.003,25631.0,25630.0,3.12334]
[1694012834437,0.02518919,25631.0,25630.0,3.12334]
[1694012834779,0.02218919,25631.0,25630.0,3.12234]
[1694012835427,0.02218919,25631.0,25630.0,2.343005]
[1694012836451,0.02218919,25631.0,25630.0,2.342005]
[1694012836632,0.02418919,25631.0,25630.0,2.342005]
[1694012839678,0.02418919,25631.0,25630.0,2.341005]
[1694012839893,0.02418919,25631.0,25630.0,3.12134]
[1694012840088,0.02718919,25631.0,25630.0,3.12234]
[1694012840291,0.02718919,25631.0,25630.0,2.342005]
[1694012843213,0.02718919,25631.0,25630.0,2.463905]
[1694012853255,0.12042762,25631.0,25630.0,2.463905]
[1694012857166,0.26028527,25631.0,25630.0,2.463905]
[1694012858175,0.16704684,25631.0,25630.0,2.463905]
[1694012858375,0.12057167,25631.0,25630.0,3.24424]
[1694012858809,0.12057167,25631.0,25630.0,3.52177661]
[1694012858810,0.02718919,25631.0,25630.0,3.52177661]
[1694012859009,0.02718919,25631.0,25630.0,4.88652715]
[1694012859215,0.09338248,25634.0,25632.0,0.02]
[1694012859553,0.23324013,25635.0,25633.0,3.352916]
[1694012859767,0.23324013,25635.0,25634.0,0.1219]
[1694012859973,0.09338248,25635.0,25634.0,3.330952]
[1694012860182,0.09338248,25635.0,25634.0,0.21358]
[1694012860385,0.11420792,25635.0,25634.0,3.334372]
[1694012860587,0.11420792,25635.0,25634.0,3.71927727]
[1694012860762,0.11420792,25635.0,25634.0,3.62939727]
[1694012860763,0.09338248,25635.0,25634.0,3.62939727]
[1694012861095,0.09338248,25635.0,25634.0,3.70415727]
[1694012861362,0.12730609,25635.0,25634.0,3.64639727]
[1694012861638,0.11530609,25635.0,25634.0,3.258752]
[1694012861874,0.11530609,25635.0,25634.0,3.347252]
[1694012861875,0.11730609,25635.0,25634.0,3.347252]
[1694012862084,0.11730609,25635.0,25634.0,3.348932]
[1694012862288,0.11730609,25635.0,25634.0,3.348512]
[1694012862475,0.11730609,25635.0,25634.0,3.347972]
[1694012862680,0.02392361,25635.0,25634.0,3.343892]
[1694012862890,0.02392361,25635.0,25634.0,3.344492]
[1694012863098,0.02392361,25635.0,25634.0,3.364892]
[1694012863303,0.11730609,25635.0,25634.0,3.372152]
[1694012863509,0.003,25635.0,25634.0,3.364232]
[1694012863712,0.003,25635.0,25634.0,3.364112]
[1694012863924,0.003,25635.0,25634.0,3.681112]
[1694012864127,0.003,25635.0,25634.0,3.700792]
[1694012864333,0.003,25635.0,25634.0,3.700492]
[1694012864539,0.003,25635.0,25634.0,4.2256906]
[1694012864743,0.003,25635.0,25634.0,4.3788706]
[1694012864952,0.23324013,25640.0,25636.0,0.02]
[1694012865187,0.09338248,25640.0,25639.0,0.1219]
[1694012865390,0.09338248,25640.0,25639.0,2.16139215]
[1694012865594,0.09338248,25640.0,25639.0,4.34699854]
[1694012865799,0.09338248,25640.0,25639.0,4.022205]
[1694012866026,0.23223093,25640.0,25639.0,4.022205]
[1694012866229,0.23623093,25640.0,25639.0,4.022205]
[1694012866372,0.10138248,25640.0,25639.0,4.022205]
[1694012866576,0.23724013,25640.0,25639.0,4.022205]
[1694012866775,0.11830675,25640.0,25639.0,4.022205]
[1694012866998,0.11430675,25640.0,25639.0,4.022205]
[1694012868236,0.11830675,25640.0,25639.0,4.022205]
[1694012868608,0.02492427,25640.0,25639.0,4.022205]
[1694012869003,0.02892427,25640.0,25639.0,4.022205]
[1694012869721,0.02892427,25640.0,25639.0,3.242144]
[1694012870860,0.02892427,25640.0,25639.0,2.462083]
[1694012871064,0.12230675,25640.0,25639.0,2.462083]
[1694012872640,0.12230675,25640.0,25639.0,3.242144]
[1694012872822,0.02892427,25640.0,25639.0,3.242144]
[1694012873667,0.02892427,25640.0,25639.0,2.462083]
[1694012874928,0.02892427,25640.0,25639.0,3.242144]
[1694012876711,0.02892427,25640.0,25639.0,2.462083]
[1694012877605,0.02892427,25640.0,25639.0,3.242144]
[1694012878284,0.02892427,25640.0,25639.0,2.462083]
[1694012879303,0.02892427,25640.0,25639.0,3.242144]
[1694012883969,0.02492427,25640.0,25639.0,3.242144]
[1694012884751,0.02092427,25640.0,25639.0,3.242144]
[1694012884966,0.02492427,25640.0,25639.0,3.242144]
[1694012885166,0.008,25640.0,25639.0,3.242144]
[1694012885533,0.004,25640.0,25639.0,3.242144]
[1694012885738,0.02092427,25640.0,25639.0,3.242144]
[1694012885942,0.26912116,25642.0,25639.0,3.242144]
[1694012886116,0.26912116,25642.0,25640.0,0.1219]
[1694012886366,0.26912116,25642.0,25641.0,2.34]
[1694012887006,0.23324013,25642.0,25641.0,2.34]
[1694012887220,0.09338248,25643.0,25641.0,2.34]
[1694012887423,0.013,25642.0,25641.0,2.34]
[1694012887638,0.4856619,25643.0,25641.0,2.34]
[1694012887836,0.62551955,25643.0,25641.0,2.34]
[1694012888075,0.013,25642.0,25641.0,2.341]
[1694012889873,0.024,25642.0,25641.0,2.341]
[1694012890290,0.013,25642.0,25641.0,2.341]
[1694012890692,0.011,25642.0,25641.0,2.341]
[1694012891066,0.011,25642.0,25641.0,2.343]
[1694012891274,0.011,25642.0,25641.0,2.341]
[1694012891496,0.13961359,25642.0,25641.0,2.341]
[1694012891681,0.15261359,25642.0,25641.0,2.342]
[1694012893112,0.15261359,25642.0,25641.0,2.4639]
[1694012894794,0.17367554,25642.0,25641.0,2.4639]
[1694012895805,0.26705802,25642.0,25641.0,2.4639]
[1694012897472,0.13844443,25642.0,25641.0,2.4639]
[1694012899677,0.27830208,25642.0,25641.0,2.4639]
[1694012900556,0.27830208,25642.0,25641.0,3.2439]
[1694012900740,0.1849196,25642.0,25641.0,3.2439]
[1694012901776,0.37139647,25642.0,25641.0,3.2439]
[1694012902556,0.23153882,25642.0,25641.0,3.2439]
[1694012903212,0.23153882,25642.0,25641.0,3.122]
[1694012903597,0.27815804,25642.0,25641.0,3.122]
[1694012904602,0.04506195,25642.0,25641.0,3.122]
[1694012905003,0.04506195,25642.0,25641.0,3.2439]
[1694012905202,0.27902981,25642.0,25641.0,3.2439]
[1694012905622,0.46621757,25642.0,25641.0,3.2439]
[1694012905996,0.27902981,25642.0,25641.0,3.2439]
[1694012907097,0.27902981,25642.0,25641.0,3.45187573]
[1694012907301,0.37276753,25642.0,25641.0,3.45187573]
[1694012907502,0.1855072,25642.0,25641.0,3.45187573]
[1694012907860,0.1855072,25642.0,25641.0,3.2439]
[1694012908064,0.16444525,25642.0,25641.0,3.2439]
[1694012909080,0.18564384,25642.0,25641.0,3.32292]
[1694012909310,0.18564384,25642.0,25641.0,3.75356527]
[1694012909311,0.024,25642.0,25641.0,3.75356527]
[1694012909516,0.024,25642.0,25641.0,4.44537054]
[1694012909713,0.024,25642.0,25641.0,4.43877054]
[1694012909920,0.024,25642.0,25641.0,4.43973054]
[1694012910124,0.024,25642.0,25641.0,4.05212527]
[1694012910330,0.024,25642.0,25641.0,4.04678527]
[1694012910529,0.024,25642.0,25641.0,4.02862527]
[1694012910530,0.10457972,25642.0,25641.0,4.02862527]
[1694012910756,0.09357972,25642.0,25641.0,3.72570527]
[1694012910972,0.24002497,25642.0,25641.0,3.65536]
[1694012911190,0.24002497,25642.0,25641.0,3.5839]
[1694012911191,0.14644525,25642.0,25641.0,3.5839]
[1694012911408,0.16768571,25642.0,25641.0,2.362]
[1694012911674,0.21250079,25642.0,25641.0,2.34]
[1694012911876,0.44646865,25642.0,25641.0,2.34]
[1694012912089,0.25520832,25642.0,25641.0,2.34]
[1694012912303,0.25620832,25642.0,25641.0,2.362]
[1694012912949,0.25620832,25642.0,25641.0,1.582]
[1694012913417,0.02224046,25642.0,25641.0,1.582]
[1694012913655,0.02424046,25642.0,25641.0,1.604]
[1694012913883,0.55557809,25642.0,25641.0,0.824]
[1694012914089,0.55557809,25642.0,25641.0,0.802]
[1694012914090,0.55357809,25642.0,25641.0,0.802]
[1694012914505,0.55557809,25642.0,25641.0,0.824]
[1694012914936,0.55557809,25642.0,25641.0,0.044]
[1694012914937,2.51697527,25642.0,25641.0,0.044]
[1694012915138,3.19225291,25642.0,25641.0,0.044]
[1694012915370,3.72487389,25642.0,25641.0,0.044]
[1694012915604,2.94490389,25642.0,25641.0,0.044]
[1694012915823,3.25940572,25642.0,25641.0,0.044]
[1694012916027,3.07193145,25642.0,25641.0,0.022]
[1694012916434,2.94390389,25642.0,25641.0,0.022]
[1694012916901,2.94190389,25642.0,25638.0,1.560158]
[1694012917117,0.40233172,25640.0,25638.0,1.560152]
[1694012917333,1.56900899,25640.0,25638.0,1.560152]
[1694012917999,1.56900899,25640.0,25638.0,1.562152]
[1694012918224,2.34904099,25640.0,25638.0,0.782075]
[1694012918378,2.34904099,25640.0,25638.0,0.780075]
[1694012918787,2.35304099,25640.0,25638.0,0.780075]
[1694012919013,0.1612674,25639.0,25638.0,0.780075]
[1694012920747,0.1612674,25639.0,25638.0,0.785075]
[1694012921312,0.1612674,25639.0,25638.0,1.570167]
[1694012924173,1.56900899,25640.0,25638.0,1.570167]
[1694012924174,0.50854527,25640.0,25638.0,2.350259]
[1694012924399,0.02095984,25639.0,25638.0,2.350259]
[1694012925015,0.2544719,25639.0,25638.0,2.350259]
[1694012925152,0.2544719,25639.0,25638.0,2.345259]
[1694012926724,0.2544719,25639.0,25638.0,2.350259]
[1694012927601,0.2544719,25639.0,25638.0,1.570167]
[1694012929295,0.2544719,25639.0,25638.0,2.350259]
[1694012929915,0.02095984,25639.0,25638.0,2.350259]
[1694012930124,2.90509953,25639.0,25638.0,0.01]
[1694012930273,3.18553125,25639.0,25638.0,0.01]
[1694012930479,3.68194076,25639.0,25638.0,0.01]
[1694012930943,3.83611148,25639.0,25638.0,0.01]
[1694012931119,4.11639784,25639.0,25638.0,0.01]
[1694012931528,4.11639784,25639.0,25636.0,0.74664745]
[1694012931703,0.50854527,25638.0,25635.0,1.560335]
[1694012932127,0.42043274,25636.0,25635.0,2.340506]
[1694012933067,0.54051556,25636.0,25635.0,2.340506]
[1694012933539,0.54051556,25636.0,25635.0,2.344506]
[1694012933717,0.54051556,25636.0,25635.0,1.564335]
[1694012934137,2.06703209,25636.0,25635.0,0.004]
[1694012934345,0.04555242,25635.0,25632.0,1.711925]
[1694012934592,0.14008589,25633.0,25632.0,0.780258]
[1694012934974,1.37627651,25633.0,25631.0,0.780281]
[1694012935186,0.0933673,25632.0,25631.0,1.560571]
[1694012935391,1.37627651,25633.0,25631.0,3.243096]
[1694012935392,0.0933673,25633.0,25631.0,3.243096]
[1694012935601,0.23345319,25634.0,25631.0,3.214736]
[1694012935804,0.18678119,25635.0,25631.0,3.214736]
[1694012935805,0.0943673,25635.0,25633.0,0.1219]
[1694012936009,0.0943673,25635.0,25634.0,3.242752]
[1694012936214,0.001,25635.0,25634.0,3.242752]
[1694012936420,0.0933673,25635.0,25634.0,3.242752]
[1694012937035,0.001,25635.0,25634.0,3.242752]
[1694012937459,0.23345319,25636.0,25634.0,3.242752]
[1694012937874,0.23345319,25636.0,25634.0,3.132852]
[1694012937875,0.23445319,25635.0,25634.0,3.132852]
[1694012938081,0.23444861,25635.0,25634.0,2.352639]
[1694012938494,0.14108589,25635.0,25634.0,1.572426]
[1694012938916,0.46777406,25635.0,25634.0,2.352639]
[1694012939127,0.46777406,25635.0,25634.0,3.132852]
[1694012939128,0.001,25635.0,25634.0,3.132852]
[1694012939531,0.02098062,25635.0,25634.0,3.120852]
[1694012939765,0.11434291,25635.0,25634.0,3.120852]
[1694012940384,0.11434291,25635.0,25634.0,3.123852]
[1694012940841,0.2554288,25635.0,25634.0,3.133852]
[1694012941229,0.2564288,25635.0,25634.0,2.365639]
[1694012941442,0.16306651,25635.0,25634.0,2.365639]
[1694012942579,0.76916676,25635.0,25634.0,1.585426]
[1694012943191,0.58238557,25635.0,25634.0,1.585426]
[1694012943817,0.58238557,25635.0,25634.0,2.365639]
[1694012945053,0.67601042,25635.0,25634.0,2.365639]
[1694012945251,0.67601042,25635.0,25634.0,3.145852]
[1694012945658,0.25669136,25635.0,25634.0,3.145852]
[1694012945862,0.02329534,25635.0,25634.0,3.145852]
[1694012947097,0.02341012,25635.0,25634.0,3.145852]
[1694012948967,0.02341012,25635.0,25634.0,3.267752]
[1694012954037,0.02352737,25635.0,25634.0,3.267752]
[1694012954877,0.1168375,25635.0,25634.0,3.267752]
[1694012956474,0.16361326,25635.0,25634.0,3.267752]
[1694012957293,0.35039445,25635.0,25634.0,3.267752]
[1694012957767,0.16361326,25635.0,25634.0,3.267752]
[1694012958157,0.35039445,25635.0,25634.0,3.267752]
[1694012959093,0.21030856,25635.0,25634.0,3.267752]
[1694012959299,0.16375152,25635.0,25634.0,3.267752]
[1694012959504,0.35053271,25635.0,25634.0,3.267752]
[1694012959710,0.16375152,25635.0,25634.0,3.267752]
[1694012959938,0.35053271,25635.0,25634.0,3.267752]
[1694012960144,0.3506926,25635.0,25634.0,3.267752]
[1694012960974,0.21046845,25635.0,25634.0,3.267752]
[1694012962786,0.21046845,25635.0,25634.0,2.487539]
[1694012962787,0.23800689,25635.0,25634.0,2.487539]
[1694012962989,0.28470218,25635.0,25634.0,2.365639]
[1694012965299,0.47174936,25635.0,25634.0,2.365639]
[1694012965502,0.28470218,25635.0,25634.0,2.365639]
[1694012965885,0.4717837,25635.0,25634.0,2.365639]
[1694012966117,0.25716374,25635.0,25634.0,2.365639]
[1694012966437,0.47755618,25635.0,25634.0,2.365639]
[1694012966637,0.29047024,25635.0,25634.0,1.585426]
[1694012966915,0.05699376,25635.0,25634.0,0.805213]
[1694012967363,0.29084789,25635.0,25634.0,1.585426]
[1694012968201,0.67749316,25635.0,25634.0,1.585426]
[1694012968406,0.44363903,25635.0,25634.0,1.585426]
[1694012969012,0.44363903,25635.0,25634.0,0.805213]
[1694012969216,0.44382234,25635.0,25634.0,0.805213]
[1694012969416,1.22400534,25635.0,25634.0,0.025]
[1694012969579,2.00418834,25635.0,25634.0,0.025]
[1694012970406,2.3730682,25635.0,25634.0,0.025]